bitfinex/quotes_SOLUSD_20251006
["timestamp","ask_amount","ask_price","bid_price","bid_amount"]
[1759786229067,10.87647521,233.53,233.51,30.24]
[1759786229247,11.52647521,233.52,233.51,30.24]
[1759786229757,10.87647521,233.51,233.42,11.3900994]
[1759786229929,10.87647521,233.49,233.45,30.24]
[1759786230126,10.87647521,233.47,233.45,30.24]
[1759786230346,11.52647521,233.47,233.45,30.24]
[1759786230540,10.87647521,233.5,233.45,30.24]
[1759786230740,3.08422672,233.51,233.45,30.24]
[1759786230741,59.77647521,233.46,233.45,30.24]
[1759786230947,10.87647521,233.46,233.45,30.24]
[1759786234050,11.52647521,233.46,233.45,30.24]
[1759786237957,10.87647521,233.46,233.45,30.24]
[1759786240236,10.87647521,233.46,233.45,34.52357249]
[1759786240542,3.08422672,233.52,233.45,35.19357249]
[1759786240543,10.87647521,233.51,233.45,35.19357249]
[1759786240744,48.9,233.49,233.46,0.67]
[1759786240944,48.9,233.49,233.47,30.22]
[1759786241143,48.9,233.49,233.48,0.67]
[1759786242462,48.9,233.49,233.48,4.9530221]
[1759786243166,48.9,233.49,233.48,17.80401483]
[1759786244351,10.87647521,233.54,233.48,28.51157008]
[1759786244565,10.87647521,233.54,233.49,30.89]
[1759786244769,10.87647521,233.54,233.5,0.67]
[1759786244967,10.87647521,233.54,233.51,30.22]
[1759786245147,11.53647521,233.54,233.51,30.22]
[1759786245463,10.87647521,233.54,233.52,4.28228845]
[1759786245762,11.53647521,233.54,233.53,30.22]
[1759786245966,10.87647521,233.54,233.53,30.22]
[1759786246449,10.87647521,233.53,233.49,12.84989184]
[1759786246651,10.87647521,233.51,233.5,30.22]
[1759786246859,11.53647521,233.51,233.5,30.22]
[1759786248578,15.81894705,233.51,233.5,30.22]
[1759786249759,11.53647521,233.51,233.5,30.22]
[1759786252245,10.87647521,233.51,233.5,30.22]
[1759786252450,10.87647521,233.53,233.5,30.22]
[1759786252656,10.87647521,233.51,233.5,30.22]
[1759786253058,10.87647521,233.51,233.5,34.50265524]
[1759786258772,10.87647521,233.51,233.5,35.15265524]
[1759786259174,10.87647521,233.51,233.5,34.50265524]
[1759786261776,10.87647521,233.51,233.5,30.22]
[1759786262154,48.9,233.52,233.5,30.87]
[1759786262876,48.9,233.52,233.5,30.22]
[1759786263263,48.9,233.52,233.5,34.50265524]
[1759786263469,48.9,233.52,233.5,35.15265524]
[1759786263659,48.9,233.52,233.5,34.50265524]
[1759786264296,48.9,233.52,233.5,35.15265524]
[1759786264471,48.9,233.52,233.51,0.65]
[1759786264783,48.9,233.55,233.51,0.65]
[1759786264954,48.9,233.55,233.52,30.85]
[1759786265157,48.9,233.55,233.53,0.65]
[1759786265375,48.9,233.55,233.54,30.2]
[1759786265781,48.9,233.55,233.54,34.48192172]
[1759786266176,48.9,233.55,233.54,35.13192172]
[1759786266590,49.6,233.55,233.54,30.2]
[1759786266764,48.9,233.55,233.54,34.48192172]
[1759786267659,49.6,233.55,233.54,34.48192172]
[1759786267861,49.6,233.55,233.54,30.18]
[1759786268061,0.7,233.55,233.54,30.18]
[1759786269962,20.8,233.51,233.44,4.78175808]
[1759786270273,31.67647521,233.49,233.45,22.82]
[1759786270579,10.87647521,233.48,233.46,30.18]
[1759786270975,11.57647521,233.48,233.46,30.18]
[1759786272388,10.87647521,233.5,233.46,34.46336456]
[1759786272580,11.57647521,233.5,233.46,34.46336456]
[1759786273291,10.87647521,233.55,233.47,0.65]
[1759786273477,10.87647521,233.55,233.49,20.8]
[1759786273680,10.87647521,233.55,233.5,30.83]
[1759786273874,10.87647521,233.55,233.51,0.65]
[1759786274184,0.7,233.55,233.52,4.28228845]
[1759786274484,0.7,233.55,233.53,30.18]
[1759786275964,11.57647521,233.54,233.53,30.18]
[1759786276680,10.87647521,233.53,233.48,4.28301636]
[1759786276984,12.11173834,233.53,233.49,30.18]
[1759786277175,10.87647521,233.51,233.49,30.18]
[1759786277361,11.57647521,233.5,233.49,30.18]
[1759786277763,10.87647521,233.46,233.38,4.28485731]
[1759786277991,1.23544656,233.45,233.39,30.18]
[1759786278205,11.55647521,233.44,233.39,30.18]
[1759786278366,10.87647521,233.42,233.39,30.18]
[1759786278571,0.68,233.41,233.39,30.18]
[1759786278782,11.55647521,233.4,233.39,30.18]
[1759786282008,12.09203647,233.4,233.39,30.18]
[1759786283907,11.55647521,233.4,233.39,30.18]
[1759786284907,10.87647521,233.4,233.39,30.18]
[1759786285794,11.55647521,233.4,233.39,30.18]
[1759786286193,10.87647521,233.4,233.39,30.18]
[1759786286503,10.87647521,233.4,233.39,30.89]
[1759786287214,10.87647521,233.4,233.39,35.17467372]
[1759786288110,10.87647521,233.45,233.39,35.17467372]
[1759786288291,10.87647521,233.43,233.4,0.71]
[1759786288486,10.87647521,233.43,233.41,0.71]
[1759786288697,10.87647521,233.43,233.42,30.2]
[1759786289216,10.87647521,233.43,233.42,34.48412304]
[1759786290619,10.87647521,233.43,233.42,35.19412304]
[1759786291506,48.9,233.44,233.42,35.19412304]
[1759786291710,48.9,233.44,233.42,34.48412304]
[1759786291914,48.9,233.43,233.42,34.48412304]
[1759786292214,48.9,233.43,233.42,35.19412304]
[1759786297315,48.9,233.43,233.42,30.2]
[1759786297519,10.87647521,233.42,233.26,4.78175808]
[1759786297708,10.87647521,233.4,233.35,0.67]
[1759786298016,10.87647521,233.4,233.36,30.18]
[1759786298405,0.71,233.39,233.36,30.18]
[1759786298605,12.12201353,233.41,233.36,30.18]
[1759786298805,11.41201353,233.41,233.36,30.18]
[1759786299112,0.71,233.4,233.36,30.85]
[1759786299500,0.71,233.4,233.36,0.67]
[1759786299698,1.24558421,233.39,233.37,30.18]
[1759786299900,0.71,233.38,233.37,30.18]
[1759786301006,11.58647521,233.38,233.37,30.18]
[1759786301200,12.12208237,233.38,233.37,30.18]
[1759786302094,11.58647521,233.38,233.37,30.18]
[1759786302294,15.87133252,233.38,233.37,30.18]
[1759786302510,11.58647521,233.38,233.37,30.18]
[1759786306728,10.87647521,233.34,233.33,4.28572806]
[1759786306925,11.58647521,233.38,233.33,35.15572806]
[1759786306926,10.87647521,233.37,233.33,35.15572806]
[1759786307802,10.87647521,233.37,233.34,0.67]
[1759786308202,10.87647521,233.4,233.34,0.67]
[1759786308526,20.8,233.4,233.34,0.67]
[1759786308715,21.51,233.42,233.3,4.99625676]
[1759786308716,10.87647521,233.38,233.3,4.99625676]
[1759786308914,1.19563011,233.37,233.31,30.18]
[1759786309226,10.87647521,233.35,233.31,34.46610094]
[1759786309609,10.87647521,233.35,233.31,35.17610094]
[1759786310108,10.87647521,233.35,233.32,0.71]
[1759786311224,10.87647521,233.35,233.32,4.9958799]
[1759786311425,10.87647521,233.35,233.32,0.71]
[1759786311818,10.87647521,233.35,233.32,4.99593197]
[1759786312413,10.87647521,233.39,233.32,4.99593197]
[1759786312619,1.19560716,233.38,233.32,4.99593197]
[1759786312832,10.87647521,233.39,233.33,0.71]
[1759786313027,10.87647521,233.39,233.34,30.18]
[1759786313244,0.66,233.38,233.34,35.17552468]
[1759786313528,0.66,233.38,233.34,34.46552468]
[1759786315015,0.66,233.38,233.34,35.17552468]
[1759786315914,4.82005861,233.4,233.35,0.71]
[1759786315915,10.87647521,233.4,233.35,0.71]
[1759786316110,10.87647521,233.38,233.35,0.71]
[1759786317733,26.7,233.37,233.35,0.71]
[1759786318037,26.7,233.37,233.36,4.28522454]
[1759786318237,26.7,233.37,233.36,4.99522454]
[1759786320019,10.87647521,233.36,233.34,34.46543519]
[1759786320323,11.53647521,233.35,233.34,30.18]
[1759786321540,10.87647521,233.35,233.34,30.18]
[1759786322138,12.07215123,233.35,233.34,30.18]
[1759786322444,16.35755941,233.35,233.34,30.18]
[1759786322626,18.32892458,233.35,233.34,30.18]
[1759786324223,31.67647521,233.31,233.25,0.1]
[1759786324427,10.87647521,233.29,233.26,30.18]
[1759786324646,0.53579082,233.3,233.26,30.18]
[1759786324647,10.87647521,233.27,233.26,30.18]
[1759786327347,11.53647521,233.27,233.26,30.18]
[1759786327719,15.82335307,233.27,233.26,30.18]
[1759786328121,17.79471824,233.27,233.26,30.18]
[1759786329246,17.79471824,233.27,233.25,0.1]
[1759786329461,11.41235791,233.26,233.25,0.1]
[1759786329626,10.87647521,233.22,233.2,3.7]
[1759786329826,7.1,233.21,233.2,3.7]
[1759786330044,17.97647521,233.21,233.2,7.98816466]
[1759786330346,17.97647521,233.21,233.2,3.7]
[1759786330651,17.97647521,233.21,233.2,4.41]
[1759786331049,17.97647521,233.21,233.2,8.69816466]
[1759786333441,0.5358827,233.26,233.2,8.69816466]
[1759786333644,10.87647521,233.26,233.21,0.71]
[1759786333823,10.47437731,233.26,233.22,0.71]
[1759786334024,10.47437731,233.26,233.23,0.71]
[1759786334755,10.47437731,233.26,233.24,4.28742925]
[1759786334945,0.66,233.3,233.25,30.2]
[1759786335142,7.1,233.29,233.25,30.2]
[1759786335354,7.63581379,233.29,233.25,30.2]
[1759786335731,10.87647521,233.28,233.25,30.2]
[1759786336054,0.66,233.3,233.25,30.2]
[1759786336055,7.1,233.27,233.26,0.71]
[1759786336825,7.1,233.27,233.26,4.99706164]
[1759786344835,7.1,233.27,233.26,4.28706164]
[1759786345032,0.69,233.29,233.26,4.28706164]
[1759786345355,0.69,233.29,233.25,30.2]
[1759786345356,0.69,233.28,233.25,30.2]
[1759786345571,10.87647521,233.26,233.25,30.2]
[1759786345859,11.56647521,233.26,233.25,30.2]
[1759786352057,10.87647521,233.26,233.25,30.2]
[1759786352359,10.87647521,233.29,233.25,34.48724544]
[1759786352656,11.56647521,233.29,233.25,34.48724544]
[1759786353352,11.56647521,233.29,233.25,35.19724544]
[1759786354449,10.87647521,233.27,233.26,0.71]
[1759786355039,10.87647521,233.27,233.25,34.48724544]
[1759786355242,10.87647521,233.27,233.25,35.19724544]
[1759786357252,10.87647521,233.27,233.26,0.69]
[1759786357453,7.1,233.28,233.26,0.69]
[1759786357658,7.1,233.28,233.27,4.28687786]
[1759786357852,7.1,233.28,233.27,4.97687786]
[1759786359749,10.87647521,233.35,233.27,15.69407252]
[1759786359942,10.87647521,233.35,233.28,30.89]
[1759786360148,0.53551538,233.42,233.29,0.69]
[1759786360149,10.87647521,233.36,233.29,0.69]
[1759786362136,10.87647521,233.36,233.3,4.28632661]
[1759786362337,10.87647521,233.36,233.31,30.2]
[1759786362539,0.69,233.35,233.31,30.89]
[1759786362760,10.87647521,233.36,233.31,30.89]
[1759786362976,10.87647521,233.36,233.32,0.69]
[1759786363146,10.87647521,233.36,233.33,0.69]
[1759786363347,11.56647521,233.39,233.34,30.2]
[1759786363542,0.69,233.38,233.34,30.89]
[1759786364069,17.97647521,233.35,233.34,30.89]
[1759786364251,17.97647521,233.35,233.34,34.48559184]
[1759786366169,10.87647521,233.35,233.34,34.48559184]
[1759786366769,10.87647521,233.35,233.34,30.2]
[1759786367084,11.56647521,233.35,233.34,30.2]
[1759786367574,15.85188339,233.35,233.34,30.2]
[1759786368670,11.56647521,233.35,233.34,30.2]
[1759786370463,10.87647521,233.35,233.34,30.2]
[1759786370857,11.59647521,233.35,233.34,30.2]
[1759786371050,16.41755941,233.35,233.34,30.2]
[1759786377794,10.87647521,233.35,233.34,30.2]
[1759786378464,10.87647521,233.35,233.34,30.92]
[1759786378873,10.87647521,233.35,233.34,35.20559184]
[1759786381293,10.87647521,233.35,233.34,30.92]
[1759786381465,10.87647521,233.35,233.34,30.2]
[1759786382302,16.41755941,233.35,233.34,30.2]
[1759786383890,19.50438263,233.35,233.34,23.1]
[1759786384400,10.87647521,233.34,233.26,5.00705367]
[1759786384581,10.87647521,233.32,233.27,30.18]
[1759786384786,11.59647521,233.32,233.27,30.9]
[1759786385372,2.43576786,233.31,233.27,30.9]
[1759786385573,7.44201354,233.31,233.27,30.9]
[1759786387394,6.72201354,233.31,233.27,30.9]
[1759786387598,2.43576786,233.31,233.27,30.18]
[1759786387821,2.43576786,233.31,233.28,0.72]
[1759786389177,1.9,233.31,233.28,0.72]
[1759786389883,10.87647521,233.29,233.28,0.72]
[1759786390085,10.87647521,233.31,233.28,0.72]
[1759786390698,5.54170838,233.32,233.28,0.72]
[1759786390905,10.87647521,233.31,233.28,0.72]
[1759786394014,15.16264867,233.31,233.28,0.72]
[1759786394310,15.88264867,233.31,233.27,30.18]
[1759786394535,1.9,233.3,233.27,30.18]
[1759786394691,10.87647521,233.29,233.27,30.18]
[1759786394894,11.59647521,233.29,233.27,30.18]
[1759786395111,1.9,233.28,233.23,0.72]
[1759786395292,12.77647521,233.27,233.24,30.18]
[1759786395495,10.87647521,233.25,233.24,30.18]
[1759786397312,10.87647521,233.23,233.2,0.72]
[1759786397517,10.87647521,233.23,233.21,30.18]
[1759786399823,13.98244982,233.22,233.21,30.18]
[1759786400030,13.31244982,233.22,233.21,30.18]
[1759786400322,12.08244982,233.22,233.21,28.28]
[1759786401126,16.37024674,233.22,233.21,28.28]
[1759786402023,15.70024674,233.22,233.21,28.28]
[1759786405214,16.37024674,233.22,233.21,28.28]
[1759786405901,15.70024674,233.22,233.21,28.28]
[1759786406108,16.37024674,233.22,233.21,28.28]
[1759786407534,15.70024674,233.22,233.21,28.28]
[1759786410708,15.70024674,233.22,233.21,27.78]
[1759786412526,10.97647521,233.21,233.18,0.7]
[1759786412731,11.64647521,233.21,233.18,30.18]
[1759786413229,10.97647521,233.21,233.18,30.88]
[1759786413428,10.97647521,233.21,233.19,0.7]
[1759786414137,15.26446417,233.21,233.18,30.18]
[1759786414334,15.26446417,233.21,233.18,30.88]
[1759786416719,0.1,233.2,233.18,30.18]
[1759786416918,10.87647521,233.21,233.19,0.68]
[1759786418132,15.16452306,233.21,233.19,0.68]
[1759786418814,10.87647521,233.21,233.19,0.68]
[1759786419443,11.55647521,233.21,233.18,30.18]
[1759786419617,10.87647521,233.21,233.18,30.18]
[1759786419817,10.87647521,233.21,233.18,30.86]
[1759786420826,10.87647521,233.21,233.19,0.68]
[1759786421030,10.87647521,233.23,233.18,30.18]
[1759786421337,10.87647521,233.23,233.2,0.68]
[1759786421541,11.55647521,233.23,233.18,30.86]
[1759786422249,11.55647521,233.23,233.19,0.68]
[1759786422629,0.1,233.22,233.19,0.68]
[1759786426155,10.87647521,233.21,233.19,0.68]
[1759786427946,10.87647521,233.21,233.18,30.18]
[1759786428344,10.87647521,233.21,233.18,30.85]
[1759786428539,0.1,233.2,233.18,30.85]
[1759786428859,10.87647521,233.19,233.18,30.18]
[1759786429160,0.1,233.2,233.18,30.18]
[1759786430754,0.1,233.2,233.18,30.85]
[1759786433952,0.1,233.2,233.18,30.18]
[1759786434257,0.1,233.2,233.18,30.85]
[1759786434438,0.1,233.19,233.18,30.85]
[1759786438357,0.1,233.19,233.18,30.18]
[1759786438358,10.97647521,233.19,233.18,30.18]
[1759786438663,15.93482376,233.19,233.18,30.18]
[1759786439267,15.83482376,233.19,233.18,30.18]
[1759786440459,15.83482376,233.19,233.17,0.1]
[1759786440655,13.38720884,233.18,233.17,0.1]
[1759786441049,14.05720884,233.18,233.17,0.1]
[1759786441457,16.37107422,233.18,233.17,0.1]
[1759786442865,29.4527919,233.18,233.17,0.1]
[1759786444075,11.41254176,233.18,233.17,0.1]
[1759786444247,10.87647521,233.18,233.17,0.77]
[1759786444443,10.87647521,233.18,233.17,0.1]
[1759786449468,12.08254176,233.18,233.17,0.1]
[1759786449770,16.37107422,233.18,233.17,0.1]
[1759786451654,11.41254176,233.18,233.17,0.1]
[1759786451870,10.87647521,233.18,233.17,0.1]
[1759786452261,10.87647521,233.17,233.15,18.81]
[1759786453351,10.87647521,233.18,233.15,18.81]
[1759786454545,10.87647521,233.18,233.16,0.67]
[1759786456359,10.87647521,233.21,233.17,0.67]
[1759786456666,10.87647521,233.21,233.17,4.95861569]
[1759786456867,10.87647521,233.21,233.18,0.67]
[1759786457259,10.87647521,233.21,233.17,0.67]
[1759786457460,11.54647521,233.21,233.18,0.67]
[1759786458048,10.87647521,233.21,233.18,0.67]
[1759786459271,11.55647521,233.21,233.18,0.67]
[1759786460477,11.55647521,233.21,233.16,4.97887127]
[1759786460678,11.55647521,233.21,233.17,0.69]
[1759786461375,11.55647521,233.21,233.18,0.69]
[1759786461766,15.84449823,233.21,233.18,0.69]
[1759786462083,15.84449823,233.21,233.16,0.69]
[1759786462256,15.84449823,233.21,233.17,0.69]
[1759786464870,0.68,233.2,233.17,0.69]
[1759786465070,0.68,233.2,233.15,18.14]
[1759786465268,0.68,233.2,233.16,0.69]
[1759786465481,0.68,233.2,233.17,0.69]
[1759786465859,10.87647521,233.21,233.18,0.69]
[1759786466256,11.55647521,233.21,233.18,0.69]
[1759786466454,11.55647521,233.21,233.16,4.97872075]
[1759786466652,11.55647521,233.21,233.17,0.69]
[1759786467669,11.55647521,233.21,233.18,0.69]
[1759786467670,10.87647521,233.21,233.18,0.69]
[1759786468366,10.87647521,233.21,233.19,0.69]
[1759786468678,10.87647521,233.22,233.19,0.69]
[1759786469083,11.55647521,233.22,233.17,4.97863576]
[1759786469252,11.55647521,233.22,233.18,0.69]
[1759786471184,11.55647521,233.22,233.18,4.97844451]
[1759786471583,11.55647521,233.22,233.19,0.69]
[1759786471877,10.87647521,233.22,233.19,0.69]
[1759786472265,10.87647521,233.22,233.15,28.86246284]
[1759786472478,11.55647521,233.22,233.17,0.69]
[1759786472672,11.55647521,233.22,233.18,0.69]
[1759786474080,10.87647521,233.22,233.18,0.69]
[1759786474272,0.68,233.21,233.18,0.69]
[1759786475078,10.87647521,233.22,233.18,0.69]
[1759786475287,11.55647521,233.22,233.18,0.69]
[1759786475585,0.68,233.21,233.18,0.69]
[1759786475985,10.87647521,233.22,233.18,0.69]
[1759786476481,0.65,233.21,233.18,0.69]
[1759786476890,0.65,233.21,233.18,0.71]
[1759786477382,15.16428146,233.22,233.18,0.71]
[1759786477567,15.81428146,233.22,233.18,0.71]
[1759786477982,0.65,233.21,233.18,0.71]
[1759786478788,15.16428146,233.22,233.18,0.71]
[1759786478991,15.81428146,233.22,233.18,0.71]
[1759786479291,0.65,233.21,233.18,0.71]
[1759786479470,15.16428146,233.22,233.18,0.71]
[1759786479792,0.65,233.21,233.18,0.71]
[1759786480280,4.93798203,233.21,233.15,18.14]
[1759786480469,15.81429564,233.22,233.16,0.71]
[1759786480666,0.65,233.21,233.16,0.71]
[1759786482193,0.65,233.21,233.16,4.99879991]
[1759786482381,0.65,233.21,233.17,0.71]
[1759786484606,11.52647521,233.2,233.15,18.14]
[1759786484784,0.65,233.19,233.15,18.14]
[1759786484988,0.65,233.18,233.15,18.14]
[1759786485201,10.87647521,233.16,233.15,18.14]
[1759786485713,11.52647521,233.16,233.15,18.14]
[1759786487606,15.81537553,233.16,233.15,18.14]
[1759786489785,18.90432535,233.16,233.15,0.1]
[1759786492215,15.81537553,233.16,233.15,0.1]
[1759786492393,19.44043789,233.16,233.15,0.1]
[1759786500909,31.67647521,233.13,233.12,0.1]
[1759786501226,35.30160655,233.13,233.12,0.1]
[1759786501395,35.99160655,233.13,233.12,0.1]
[1759786501797,37.19210896,233.13,233.12,0.1]
[1759786502007,40.28105878,233.13,233.12,0.1]
[1759786503519,37.19210896,233.13,233.12,0.1]
[1759786503707,40.28105878,233.13,233.12,0.1]
[1759786505613,70.42105878,233.13,233.12,0.1]
[1759786505931,31.67647521,233.1,233.09,0.1]
[1759786506102,65.44167556,233.1,233.09,0.1]
[1759786506303,66.13167556,233.1,233.09,1e-08]
[1759786506708,67.849114,233.1,233.09,1e-08]
[1759786506913,64.76016418,233.1,233.09,1e-08]
[1759786507223,67.849114,233.1,233.09,1e-08]
[1759786507517,37.709114,233.1,233.09,1e-08]
[1759786507700,67.849114,233.1,233.09,1e-08]
[1759786508222,10.87647521,233.09,233.08,1e-08]
[1759786508396,41.01647521,233.09,233.08,1e-08]
[1759786508719,41.70647521,233.09,233.08,1e-08]
[1759786509423,11.56647521,233.09,233.08,1e-08]
[1759786509610,41.70647521,233.09,233.08,1e-08]
[1759786510124,45.99666354,233.09,233.08,1e-08]
[1759786511299,47.71424947,233.09,233.08,1e-08]
[1759786512908,10.87647521,233.05,233.03,0.81]
[1759786513116,32.21286381,233.04,233.03,0.81]
[1759786514731,36.50397263,233.04,233.03,0.81]
[1759786521739,32.21286381,233.04,233.03,0.81]
[1759786522436,31.67647521,233.04,233.03,0.81]
[1759786522640,10.87647521,233.04,233.03,0.81]
[1759786524034,10.87647521,233.04,233.03,5.10129296]
[1759786529918,4.94968685,233.12,233.03,15.82952537]
[1759786530118,31.67647521,233.11,233.04,0.7]
[1759786530419,10.87647521,233.13,233.04,0.7]
[1759786531025,10.87647521,233.14,233.04,0.7]
[1759786532034,10.87647521,233.14,233.05,15.01823642]
[1759786532217,10.87647521,233.14,233.06,30.82]
[1759786532417,10.87647521,233.14,233.07,0.7]
[1759786533338,10.87647521,233.15,233.07,0.7]
[1759786534128,10.87647521,233.15,233.08,15.01630341]
[1759786534316,10.87647521,233.17,233.09,0.7]
[1759786536820,11.56647521,233.17,233.1,4.29000429]
[1759786537020,11.56647521,233.17,233.11,0.72]
[1759786538052,15.85519563,233.17,233.11,0.72]
[1759786539036,11.56647521,233.17,233.12,4.28963623]
[1759786539351,0.69,233.16,233.12,5.00963623]
[1759786539551,0.69,233.16,233.13,30.12]
[1759786541453,0.69,233.16,233.13,30.84]
[1759786542043,10.87647521,233.17,233.13,30.84]
[1759786542354,11.56647521,233.17,233.13,30.84]
[1759786543035,0.69,233.16,233.13,30.84]
[1759786543462,11.56647521,233.17,233.13,35.12941592]
[1759786543770,0.53599759,233.21,233.14,0.72]
[1759786543771,1.22599759,233.21,233.14,0.72]
[1759786544066,10.87647521,233.2,233.14,0.72]
[1759786544740,10.87647521,233.22,233.14,0.72]
[1759786545524,10.87647521,233.22,233.15,4.28908428]
[1759786545729,10.87647521,233.22,233.16,0.72]
[1759786546533,10.87647521,233.23,233.16,0.72]
[1759786547731,31.67647521,233.25,233.17,15.01050734]
[1759786547958,31.67647521,233.25,233.18,0.72]
[1759786548254,32.36647521,233.25,233.19,30.1]
[1759786548446,32.36647521,233.25,233.2,0.71]
[1759786548764,32.36647521,233.25,233.21,0.71]
[1759786549436,36.65372938,233.25,233.21,0.71]
[1759786550756,32.36647521,233.25,233.21,0.71]
[1759786553252,10.87647521,233.23,233.21,0.71]
[1759786553450,10.87647521,233.23,233.2,4.288158]
[1759786553751,10.87647521,233.23,233.2,4.998158]
[1759786554147,10.87647521,233.23,233.19,34.38834477]
[1759786554359,10.87647521,233.23,233.2,0.71]
[1759786555069,0.69,233.22,233.19,30.1]
[1759786555435,0.69,233.22,233.19,30.81]
[1759786555767,15.16410349,233.23,233.19,30.81]
[1759786555942,15.85410349,233.23,233.19,30.81]
[1759786556349,11.56647521,233.23,233.19,30.81]
[1759786557263,11.56647521,233.23,233.2,30.08]
[1759786559154,0.69,233.22,233.2,30.08]
[1759786559376,10.87647521,233.21,233.12,4.28963623]
[1759786559546,0.69,233.2,233.13,30.79]
[1759786559749,6.26763308,233.23,233.13,43.6608411]
[1759786559750,10.87647521,233.18,233.13,43.6608411]
[1759786559956,11.56647521,233.18,233.14,0.71]
[1759786561747,0.69,233.17,233.13,34.36932005]
[1759786562081,15.16445599,233.21,233.14,0.71]
[1759786562082,10.87647521,233.21,233.14,0.71]
[1759786562459,10.87647521,233.21,233.14,13.57918473]
[1759786562771,10.87647521,233.21,233.15,0.71]
[1759786563158,10.87647521,233.21,233.16,4.28890032]
[1759786563354,0.69,233.23,233.17,30.79]
[1759786563558,10.87647521,233.22,233.18,0.71]
[1759786563770,10.87647521,233.22,233.18,13.5786327]
[1759786563971,10.87647521,233.22,233.19,0.71]
[1759786564565,10.87647521,233.22,233.18,12.8686327]
[1759786564749,0.69,233.22,233.18,13.5786327]
[1759786565075,11.56647521,233.24,233.19,0.71]
[1759786565284,10.87647521,233.22,233.19,0.71]
[1759786566781,10.87647521,233.22,233.2,4.99816466]
[1759786566985,10.87647521,233.22,233.21,30.08]
[1759786567150,0.69,233.25,233.21,30.08]
[1759786567459,10.87647521,233.23,233.21,30.08]
[1759786567664,11.56647521,233.23,233.21,30.08]
[1759786567888,0.69,233.25,233.21,34.36790161]
[1759786568092,10.87647521,233.23,233.21,34.36790161]
[1759786568566,0.69,233.26,233.22,0.71]
[1759786568780,10.87647521,233.24,233.22,0.71]
[1759786569777,10.87647521,233.24,233.21,45.24437682]
[1759786570375,10.87647521,233.28,233.21,45.24437682]
[1759786570571,0.69,233.24,233.21,45.24437682]
[1759786570957,15.1632222,233.28,233.21,45.24437682]
[1759786571272,15.1632222,233.28,233.21,45.95437682]
[1759786571273,0.69,233.26,233.21,45.95437682]
[1759786571473,15.1632222,233.28,233.22,0.71]
[1759786571672,10.87647521,233.25,233.22,0.71]
[1759786572287,10.87647521,233.25,233.21,45.95437682]
[1759786572486,10.87647521,233.29,233.21,45.95437682]
[1759786572690,11.56647521,233.29,233.22,0.71]
[1759786572998,32.36647521,233.29,233.22,0.71]
[1759786573303,32.36647521,233.29,233.23,11.56647521]
[1759786573475,10.87647521,233.3,233.24,30.79]
[1759786573792,10.87647521,233.3,233.25,0.71]
[1759786574165,10.87647521,233.3,233.25,11.58647521]
[1759786574366,10.87647521,233.3,233.26,4.99706164]
[1759786574587,10.87647521,233.3,233.27,30.06]
[1759786575394,10.87647521,233.3,233.27,45.22317145]
[1759786575689,10.87647521,233.3,233.27,34.34669624]
[1759786575887,0.69,233.3,233.27,34.34669624]
[1759786576262,0.2,233.32,233.27,34.34669624]
[1759786576481,10.87647521,233.31,233.28,13.57366657]
[1759786577390,10.87647521,233.31,233.28,12.86366657]
[1759786577706,0.2,233.32,233.29,0.71]
[1759786577908,0.2,233.32,233.3,30.77]
[1759786578491,0.2,233.32,233.31,4.2861429]
[1759786578676,0.2,233.32,233.31,4.9861429]
[1759786583693,0.87,233.41,233.34,20.8]
[1759786583873,0.87,233.41,233.31,15.70150015]